bitfinex/quotes_BTCUSD_20240611
["timestamp","ask_amount","ask_price","bid_price","bid_amount"]
[1718124204779,0.009416,66615.0,66614.0,1.83372278]
[1718124204991,0.009416,66615.0,66614.0,1.67740598]
[1718124205190,0.009016,66615.0,66614.0,1.67740598]
[1718124205561,0.009016,66615.0,66614.0,1.85605554]
[1718124205769,0.009016,66615.0,66614.0,1.92702114]
[1718124205974,0.009416,66618.0,66617.0,0.3264278]
[1718124206182,0.009416,66618.0,66617.0,0.97623684]
[1718124206395,0.009416,66618.0,66617.0,1.27645984]
[1718124206618,0.009416,66618.0,66617.0,1.59057145]
[1718124206829,0.009416,66618.0,66617.0,1.59047607]
[1718124207039,0.009416,66618.0,66617.0,1.50279192]
[1718124207210,0.009416,66618.0,66617.0,1.52279192]
[1718124207436,0.009416,66618.0,66617.0,1.43415927]
[1718124207748,0.009416,66618.0,66617.0,1.52276928]
[1718124209328,0.009416,66618.0,66617.0,1.67908608]
[1718124209535,0.0783,66628.0,66627.0,0.170089]
[1718124209745,0.0783,66628.0,66627.0,0.270089]
[1718124209956,0.0783,66628.0,66627.0,0.67819992]
[1718124210179,0.0783,66628.0,66627.0,0.37028499]
[1718124210804,0.00940501,66630.0,66629.0,0.170084]
[1718124211081,0.00940501,66630.0,66629.0,0.51123638]
[1718124211285,0.00940501,66630.0,66629.0,0.82584592]
[1718124211501,0.00940501,66630.0,66629.0,1.06584592]
[1718124211706,0.00940501,66630.0,66629.0,1.22216272]
[1718124212566,0.00940501,66630.0,66629.0,1.52233172]
[1718124213408,0.08780501,66655.0,66641.0,0.1763168]
[1718124213654,0.08780501,66655.0,66654.0,0.150028]
[1718124213866,0.08780501,66655.0,66654.0,0.39434793]
[1718124214079,0.08780501,66655.0,66654.0,0.49061854]
[1718124214291,0.08780501,66655.0,66654.0,0.63760467]
[1718124215002,0.19507685,66655.0,66654.0,0.34325674]
[1718124215230,0.36157685,66655.0,66654.0,0.34325674]
[1718124215937,0.36157685,66655.0,66654.0,0.10325674]
[1718124216379,0.36157685,66655.0,66654.0,0.00325674]
[1718124216612,0.06358864,66643.0,66640.0,0.150058]
[1718124216846,0.2831832,66641.0,66640.0,0.150058]
[1718124218006,0.2831832,66641.0,66640.0,0.250058]
[1718124219622,0.2395,66641.0,66640.0,0.250058]
[1718124220299,0.2395,66641.0,66640.0,0.26780648]
[1718124220517,0.2395,66641.0,66640.0,0.50780648]
[1718124222866,0.2831832,66641.0,66640.0,0.50780648]
[1718124223068,0.2395,66641.0,66640.0,0.50780648]
[1718124224180,0.2395,66641.0,66640.0,0.51074802]
[1718124225023,0.2395,66641.0,66640.0,0.27074802]
[1718124225431,0.2831832,66641.0,66640.0,0.27074802]
[1718124227396,0.2395,66641.0,66640.0,0.27074802]
[1718124228380,0.2395,66641.0,66640.0,0.67074802]
[1718124228985,0.2395,66641.0,66640.0,0.91074802]
[1718124229395,0.2831832,66641.0,66640.0,0.91074802]
[1718124231750,0.68571015,66641.0,66640.0,0.40294154]
[1718124231978,0.33927184,66626.0,66612.0,0.46686782]
[1718124232189,0.33307184,66618.0,66617.0,0.06003]
[1718124232404,0.33307184,66618.0,66611.0,0.4793]
[1718124232405,0.0436832,66615.0,66611.0,0.4793]
[1718124232623,0.0436832,66615.0,66606.0,0.01518029]
[1718124232844,0.0436832,66615.0,66608.0,0.060037]
[1718124233053,0.0436832,66615.0,66606.0,0.03360848]
[1718124233054,0.0436832,66615.0,66609.0,0.09765144]
[1718124233254,0.0436832,66615.0,66610.0,0.09765144]
[1718124233663,0.0436832,66613.0,66608.0,0.150131]
[1718124233947,0.0436832,66613.0,66609.0,0.09651943]
[1718124234428,0.06358864,66616.0,66609.0,0.09651943]
[1718124234429,0.0436832,66615.0,66610.0,0.24]
[1718124234651,0.0436832,66614.0,66610.0,0.24]
[1718124234908,0.0436832,66614.0,66611.0,0.1]
[1718124235376,0.0436832,66613.0,66611.0,0.1]
[1718124235884,0.0436832,66612.0,66611.0,0.1]
[1718124236425,0.06358864,66616.0,66611.0,0.1]
[1718124236714,0.0436832,66612.0,66611.0,0.1]
[1718124239669,0.0436832,66612.0,66611.0,0.10253161]
[1718124240293,0.0436832,66612.0,66611.0,0.00253161]
[1718124240510,0.0436832,66612.0,66609.0,0.34]
[1718124240729,0.0436832,66611.0,66610.0,0.00260844]
[1718124243576,0.10727184,66615.0,66610.0,0.00260844]
[1718124243819,0.0436832,66614.0,66610.0,0.00260844]
[1718124244675,0.0436832,66613.0,66610.0,0.00260844]
[1718124244887,0.0436832,66612.0,66610.0,0.00260844]
[1718124245522,0.0436832,66614.0,66610.0,0.00260844]
[1718124245976,0.06358864,66615.0,66611.0,0.08215996]
[1718124246203,0.06358864,66623.0,66615.0,0.02]
[1718124246419,0.2309,66630.0,66612.0,0.2151]
[1718124246420,0.06358864,66620.0,66616.0,0.16431993]
[1718124246656,0.06358864,66620.0,66617.0,0.34]
[1718124246883,0.06358864,66620.0,66618.0,0.14431993]
[1718124247123,0.2309,66630.0,66621.0,0.150102]
[1718124247124,0.06358864,66622.0,66621.0,0.150102]
[1718124247537,0.06358864,66623.0,66622.0,0.1501]
[1718124247969,0.06358864,66623.0,66622.0,0.15272377]
[1718124250053,0.06358864,66627.0,66622.0,0.00262377]
[1718124250281,0.2309,66630.0,66622.0,0.00262377]
[1718124250282,0.06358864,66630.0,66623.0,0.41081993]
[1718124250519,0.06358864,66630.0,66629.0,0.150084]
[1718124250743,0.06358864,66630.0,66629.0,0.15270777]
[1718124250965,0.06358864,66630.0,66629.0,0.39270777]
[1718124251631,0.06358864,66631.0,66630.0,0.150082]
[1718124252116,0.06358864,66635.0,66632.0,0.02]
[1718124252355,0.06358864,66636.0,66635.0,0.150071]
[1718124253034,0.06358864,66636.0,66635.0,0.15269477]
[1718124253234,0.06358864,66637.0,66636.0,0.150069]
[1718124253608,0.06358864,66637.0,66636.0,0.1525869]
[1718124253868,0.06358864,66639.0,66638.0,0.150064]
[1718124254081,0.06358864,66639.0,66638.0,0.250064]
[1718124254518,0.06358864,66639.0,66638.0,0.2525819]
[1718124254773,0.06397864,66641.0,66640.0,0.15006]
[1718124254990,0.06397864,66641.0,66640.0,0.39006]
[1718124255419,0.06397864,66641.0,66640.0,0.3925779]
[1718124255420,0.10766184,66641.0,66640.0,0.3925779]
[1718124258058,0.10766184,66641.0,66640.0,0.1525779]
[1718124258483,0.10766184,66641.0,66640.0,0.3925779]
[1718124259004,0.10766184,66641.0,66640.0,0.0025179]
[1718124259005,0.37388359,66641.0,66640.0,0.0025179]
[1718124259222,0.66826052,66641.0,66640.0,0.0025179]
[1718124259436,0.35357184,66635.0,66634.0,0.01779767]
[1718124259868,0.2899832,66628.0,66627.0,0.1]
[1718124260307,0.06358864,66630.0,66627.0,0.17467024]
[1718124260514,0.06358864,66630.0,66627.0,0.12030637]
[1718124260936,0.07215996,66695.0,66627.0,0.12030637]
[1718124261143,1.03997113,66714.0,66627.0,0.12030637]
[1718124261144,1.429308,66701.0,66700.0,91.27856637]
[1718124261358,6.1755948,66701.0,66700.0,90.78130337]
[1718124261580,9.69694389,66701.0,66700.0,90.48885006]
[1718124261791,11.01533515,66701.0,66700.0,90.48359425]
[1718124261998,15.66806015,66701.0,66700.0,90.48359425]
[1718124262207,15.95670001,66701.0,66700.0,90.38175903]
[1718124262417,15.95670001,66701.0,66700.0,90.33347374]
[1718124262418,16.17701971,66701.0,66700.0,90.33347374]
[1718124262692,15.82400327,66701.0,66700.0,90.27092914]
[1718124262904,16.19056497,66701.0,66700.0,90.22676041]
[1718124263082,16.24239937,66701.0,66700.0,90.2230071]
[1718124263506,16.24239937,66701.0,66700.0,90.21664851]
[1718124263716,16.24239937,66701.0,66700.0,90.21289551]
[1718124264149,16.24239937,66701.0,66700.0,90.2091422]
[1718124264607,16.24239937,66701.0,66700.0,90.2053902]
[1718124264823,16.24239937,66701.0,66700.0,90.2016373]
[1718124265045,16.60089937,66701.0,66700.0,90.2016373]
[1718124265280,16.60089937,66701.0,66700.0,90.1978853]
[1718124265495,16.89489937,66701.0,66700.0,90.09468507]
[1718124265689,17.25639937,66701.0,66700.0,90.09468507]
[1718124265953,17.25639937,66701.0,66700.0,90.09093217]
[1718124266383,17.24239937,66701.0,66700.0,90.08693217]
[1718124266605,17.23939937,66701.0,66700.0,90.08217927]
[1718124266812,17.25339937,66701.0,66700.0,90.05042727]
[1718124267237,17.25339937,66701.0,66700.0,90.04667527]
[1718124267238,17.25349192,66701.0,66700.0,90.04667527]
[1718124267449,17.25349192,66701.0,66700.0,90.03826732]
[1718124267887,17.25349192,66701.0,66700.0,90.03545032]
[1718124268318,17.25434192,66701.0,66700.0,90.03169832]
[1718124268535,17.35384192,66701.0,66700.0,90.03169832]
[1718124268747,1.907609,66685.0,66684.0,9.2e-07]
[1718124268923,5.85860549,66685.0,66684.0,9.2e-07]
[1718124269187,6.59434539,66685.0,66684.0,9.2e-07]
[1718124269867,6.55648254,66685.0,66684.0,9.2e-07]
[1718124270314,6.53393471,66685.0,66684.0,9.2e-07]
[1718124270527,6.53493471,66685.0,66684.0,9.2e-07]
[1718124271174,6.53870627,66685.0,66684.0,9.2e-07]
[1718124271849,6.33870627,66685.0,66684.0,9.2e-07]
[1718124272067,6.18020627,66685.0,66684.0,9.2e-07]
[1718124272294,6.0763163,66685.0,66684.0,9.2e-07]
[1718124272513,5.31855194,66685.0,66684.0,9.2e-07]
[1718124272732,0.649974,66678.0,66677.0,0.07215996]
[1718124272950,0.96765504,66678.0,66677.0,0.07215996]
[1718124273162,1.05746006,66678.0,66677.0,0.07215996]
[1718124273825,1.35740906,66678.0,66677.0,0.07215996]
[1718124274042,1.45740906,66678.0,66677.0,0.07215996]
[1718124274285,0.64999,66671.0,66670.0,0.07215996]
[1718124274502,0.99957606,66671.0,66670.0,0.07215996]
[1718124275645,0.150006,66664.0,66657.0,0.2471]
[1718124275872,0.38413095,66664.0,66657.0,0.2471]
[1718124276084,0.38413095,66664.0,66663.0,0.07457809]
[1718124276299,0.38413095,66664.0,66663.0,0.07215996]
[1718124276522,0.38413095,66664.0,66663.0,0.07457809]
[1718124276976,0.38713095,66664.0,66663.0,0.07557809]
[1718124277204,0.39413095,66664.0,66663.0,0.07557809]
[1718124277412,0.39113095,66664.0,66663.0,0.07457809]
[1718124277635,0.43024405,66664.0,66663.0,0.00341813]
[1718124277862,0.89413095,66664.0,66663.0,0.00341813]
[1718124278031,0.9096091,66664.0,66663.0,0.001]
[1718124278259,1.06891702,66664.0,66663.0,0.001]
[1718124278613,1.048604,66664.0,66663.0,0.001]
[1718124278826,1.1534644,66664.0,66663.0,0.001]
[1718124280453,1.4534764,66664.0,66663.0,0.001]
[1718124280611,0.150021,66657.0,66649.0,0.43295979]
[1718124280817,0.38555387,66657.0,66649.0,0.43295979]
[1718124281016,0.38555387,66657.0,66656.0,0.07452021]
[1718124281216,0.38555387,66657.0,66656.0,0.07215996]
[1718124282286,0.15003,66654.0,66648.0,0.2336]
[1718124282493,0.237952,66653.0,66651.0,0.07215996]
[1718124282706,0.14431993,66653.0,66651.0,0.07215996]
[1718124282905,0.14431993,66653.0,66652.0,0.00236025]
[1718124283114,0.17375492,66653.0,66652.0,0.00236025]
[1718124284360,0.18775492,66653.0,66652.0,0.00236025]
[1718124284804,0.14431993,66653.0,66652.0,0.00236025]
[1718124285013,0.14931993,66653.0,66652.0,0.00236025]
[1718124285240,0.14931993,66653.0,66649.0,0.1]
[1718124285431,0.14431993,66653.0,66652.0,0.00236025]
[1718124285641,0.14431993,66653.0,66649.0,0.1]
[1718124285879,0.15031993,66653.0,66652.0,0.00236025]
[1718124286082,0.25806762,66653.0,66652.0,0.001]
[1718124286491,0.25206762,66653.0,66652.0,0.001]
[1718124286695,0.2521611,66653.0,66652.0,0.001]
[1718124286914,0.2551611,66653.0,66652.0,0.001]
[1718124287130,0.29568021,66653.0,66652.0,0.001]
[1718124287558,0.20183904,66653.0,66652.0,0.001]
[1718124288460,0.19883904,66653.0,66652.0,0.001]
[1718124288663,0.16531993,66653.0,66652.0,0.001]
[1718124290632,0.16531993,66653.0,66652.0,0.00338533]
[1718124290831,0.16531993,66653.0,66652.0,0.001]
[1718124291036,0.16531993,66653.0,66652.0,0.00338533]
[1718124291245,0.16531993,66653.0,66652.0,0.001]
[1718124291449,0.16531993,66653.0,66652.0,0.0033837]
[1718124291667,0.16531993,66653.0,66652.0,0.001]
[1718124295416,0.19685492,66653.0,66652.0,0.001]
[1718124295628,0.31534993,66653.0,66652.0,0.001]
[1718124296204,0.408014,66653.0,66652.0,0.001]
[1718124299636,0.40783751,66653.0,66652.0,0.001]
[1718124300521,0.40765697,66653.0,66652.0,0.001]
[1718124300744,0.40765697,66653.0,66652.0,0.00328691]
[1718124301003,0.40765697,66653.0,66652.0,0.001]
[1718124301443,0.45290825,66653.0,66652.0,0.001]
[1718124301662,0.40764624,66653.0,66652.0,0.001]
[1718124302096,0.49063575,66653.0,66652.0,0.001]
[1718124302535,0.56138833,66653.0,66652.0,0.001]
[1718124302749,0.49394188,66653.0,66652.0,0.001]
[1718124303810,0.42233662,66653.0,66652.0,0.001]
[1718124304022,0.40679356,66653.0,66652.0,0.001]
[1718124304453,0.4223197,66653.0,66652.0,0.001]
[1718124304658,0.5007399,66653.0,66652.0,0.001]
[1718124304875,0.40614808,66653.0,66652.0,0.001]
[1718124305526,0.40614808,66653.0,66652.0,0.2763]
[1718124305969,0.40614808,66653.0,66652.0,0.27859965]
[1718124306189,0.25611808,66653.0,66652.0,0.47859965]
[1718124306402,0.11283137,66653.0,66652.0,0.47859965]
[1718124306634,0.021,66653.0,66652.0,0.47859965]
[1718124307543,0.021,66653.0,66652.0,0.27859965]
[1718124307753,0.021,66653.0,66652.0,0.47859965]
[1718124308200,0.021,66653.0,66652.0,0.49859965]
[1718124308630,0.021,66653.0,66652.0,0.84863265]
[1718124308858,0.00085,66664.0,66663.0,0.5837]
[1718124309306,0.00085,66664.0,66663.0,0.58597546]
[1718124309526,0.00085,66664.0,66663.0,0.68597546]
[1718124309751,0.00085,66664.0,66663.0,0.83598346]
[1718124310409,0.00085,66664.0,66663.0,0.93598346]
[1718124310617,0.04496498,66686.0,66679.0,0.1]
[1718124310848,0.22220589,66685.0,66680.0,0.09469341]
[1718124311093,0.14431993,66685.0,66680.0,0.09469341]
[1718124311542,0.14431993,66685.0,66682.0,0.2]
[1718124311770,0.14431993,66685.0,66683.0,0.2]
[1718124311997,0.14431993,66685.0,66683.0,0.00214311]
[1718124312457,0.14631993,66685.0,66683.0,0.20214311]
[1718124312676,0.14631993,66685.0,66683.0,0.00214311]
[1718124312895,0.00749874,66684.0,66683.0,0.00214311]
[1718124313113,0.15181867,66684.0,66681.0,0.1844]
[1718124313330,0.15181867,66684.0,66683.0,0.00257173]
[1718124313550,0.15181867,66684.0,66681.0,0.1844]
[1718124313764,0.15181867,66684.0,66683.0,0.00257173]
[1718124313980,0.14431993,66684.0,66683.0,0.001]
[1718124314220,0.14431993,66684.0,66683.0,0.002]
[1718124314428,0.14431993,66684.0,66683.0,0.00457173]
[1718124314644,0.30891292,66684.0,66683.0,0.00357173]
[1718124314854,0.29428093,66684.0,66683.0,0.00257173]
[1718124315304,0.14431993,66684.0,66681.0,0.001]
[1718124315561,0.14431993,66683.0,66679.0,0.07215996]
[1718124315783,0.149946,66691.0,66679.0,0.07215996]
[1718124315784,0.149946,66691.0,66680.0,0.2874]
[1718124316061,0.14431993,66690.0,66688.0,0.07215996]
[1718124316311,0.14431993,66690.0,66689.0,0.0874]
[1718124317515,0.14531993,66690.0,66689.0,0.0874]
[1718124317869,0.002,66690.0,66689.0,0.4607]
[1718124318073,0.002,66690.0,66689.0,0.2607]
[1718124318074,0.007,66690.0,66689.0,0.2607]
[1718124318607,0.002,66690.0,66689.0,0.2607]
[1718124319119,0.006,66690.0,66689.0,0.2607]
[1718124319561,0.004,66690.0,66689.0,0.2597]
[1718124319764,0.005,66690.0,66689.0,0.2607]
[1718124321679,0.14931993,66690.0,66689.0,0.2607]
[1718124322347,0.14931993,66690.0,66689.0,0.001]
[1718124322620,0.31419892,66690.0,66689.0,0.001]
[1718124324992,0.14931993,66690.0,66689.0,0.001]
[1718124325424,0.14931993,66690.0,66689.0,0.00376162]
[1718124325833,0.14931993,66690.0,66689.0,0.001]
[1718124326056,0.14931993,66690.0,66689.0,0.00376162]
[1718124326508,0.005,66690.0,66689.0,0.00376162]
[1718124329228,0.14931993,66690.0,66689.0,0.00376162]
[1718124332599,0.14931993,66690.0,66689.0,0.10376162]
[1718124332841,0.15017993,66690.0,66689.0,0.10376162]
[1718124333686,0.00586,66690.0,66689.0,0.27646162]
[1718124333904,0.00586,66690.0,66689.0,0.47646162]
[1718124334683,0.00586,66690.0,66689.0,0.27646162]
[1718124335897,0.00586,66690.0,66689.0,0.47646162]
[1718124336378,0.00586,66690.0,66689.0,0.27646162]
[1718124336599,0.00586,66690.0,66689.0,0.47646162]
[1718124337467,0.00586,66690.0,66689.0,0.49646162]
[1718124337735,0.00586,66690.0,66689.0,0.56746162]
[1718124339005,0.00586,66690.0,66689.0,0.58746162]
[1718124340373,0.00586,66690.0,66689.0,0.56746162]
[1718124345393,0.00586,66690.0,66689.0,0.36746162]
[1718124345606,0.00586,66690.0,66689.0,0.56746162]
[1718124346041,0.00586,66690.0,66689.0,0.58746162]
[1718124346931,0.00586,66690.0,66689.0,0.56746162]
[1718124348213,0.00586,66690.0,66689.0,0.36746162]
[1718124348431,0.00586,66690.0,66689.0,0.56746162]
[1718124349941,0.00586,66690.0,66689.0,0.58746162]
[1718124350375,0.00086,66690.0,66689.0,0.58646162]
[1718124350607,0.00186,66690.0,66689.0,0.58846162]
[1718124355549,0.00186,66690.0,66689.0,0.56846162]
[1718124355772,0.00186,66690.0,66689.0,0.58846162]
[1718124355973,0.00186,66690.0,66689.0,0.56846162]
[1718124356660,0.00186,66690.0,66689.0,0.58846162]
[1718124356890,0.00186,66690.0,66689.0,0.78846162]
[1718124357112,0.00186,66690.0,66689.0,0.89559523]
[1718124357981,0.00086,66690.0,66689.0,0.89459523]
[1718124358199,0.00086,66690.0,66689.0,0.89359523]
[1718124358418,0.00086,66690.0,66689.0,1.04454423]
[1718124358630,0.00086,66690.0,66689.0,1.04354423]
[1718124358837,0.00086,66690.0,66689.0,1.03205322]
[1718124359052,0.00086,66690.0,66689.0,1.04205322]
[1718124359270,0.00086,66690.0,66689.0,0.93641062]
[1718124359485,0.00086,66690.0,66689.0,0.93841062]
[1718124360129,0.00086,66690.0,66689.0,0.93941062]
[1718124360560,0.00086,66690.0,66689.0,1.0397087]
[1718124361438,0.00086,66690.0,66689.0,1.0407087]
[1718124361661,0.00086,66690.0,66689.0,1.0437087]
[1718124361882,0.00086,66690.0,66689.0,1.0407087]
[1718124362355,0.00086,66690.0,66689.0,1.0217087]
[1718124362805,0.00086,66690.0,66689.0,1.0207087]
[1718124363042,0.00086,66690.0,66689.0,0.3080597]
[1718124363276,0.00086,66690.0,66689.0,0.20476162]
[1718124364071,0.00086,66690.0,66689.0,0.20276162]
[1718124364280,0.00086,66690.0,66689.0,0.20376162]
[1718124365837,0.00186,66690.0,66689.0,0.20376162]
[1718124366475,0.00186,66690.0,66689.0,0.20276162]
[1718124366942,0.00186,66690.0,66689.0,0.20376162]
[1718124367213,0.00186,66690.0,66689.0,0.40376162]
[1718124367417,0.00186,66690.0,66689.0,0.40276162]
[1718124367637,0.00186,66690.0,66689.0,0.52376162]
[1718124367855,0.00086,66690.0,66689.0,0.79886162]
[1718124368070,0.00286,66690.0,66689.0,0.79886162]
[1718124368295,0.00286,66690.0,66689.0,0.90294877]
[1718124368964,0.00286,66690.0,66689.0,0.96515076]
[1718124369409,0.00286,66690.0,66689.0,1.11509976]
[1718124371031,0.00286,66690.0,66689.0,1.57420612]
[1718124371248,0.00286,66690.0,66689.0,1.61982976]
[1718124371492,0.00286,66690.0,66689.0,1.9362934]
[1718124371708,0.00286,66690.0,66689.0,1.7583873]
[1718124371917,0.00086,66690.0,66689.0,1.7583873]
[1718124372384,0.00086,66690.0,66689.0,1.7613873]
[1718124373052,0.00086,66690.0,66689.0,1.7603873]
[1718124373492,0.00086,66690.0,66689.0,1.7613873]
[1718124373915,0.00086,66690.0,66689.0,1.7603873]
[1718124374327,0.00086,66690.0,66689.0,1.46785609]
[1718124374974,0.00086,66690.0,66689.0,1.76530924]
[1718124375205,0.00086,66690.0,66689.0,0.68026024]
[1718124375421,0.00086,66690.0,66689.0,0.38380709]
[1718124375647,0.00086,66690.0,66689.0,0.38380712]
[1718124375914,0.00086,66690.0,66689.0,0.6416051]
[1718124376148,0.00086,66690.0,66689.0,0.96910772]
[1718124376360,0.00086,66690.0,66689.0,0.96810757]
[1718124376582,0.00086,66690.0,66689.0,0.96910757]
[1718124376797,0.00086,66690.0,66689.0,1.1192058]
[1718124377227,0.00086,66690.0,66689.0,1.1182058]
[1718124377489,0.00086,66690.0,66689.0,1.1192058]
[1718124377920,0.00086,66690.0,66689.0,1.1182058]
[1718124379219,0.00086,66690.0,66689.0,1.3582058]
[1718124379426,0.00086,66690.0,66689.0,1.1182058]
[1718124380475,0.00086,66690.0,66689.0,1.1192058]
[1718124380889,0.00086,66690.0,66689.0,1.1182058]
[1718124381359,0.00086,66690.0,66689.0,1.1192058]
[1718124382677,0.00086,66690.0,66689.0,1.11558645]
[1718124384352,0.00086,66690.0,66689.0,1.35558645]
[1718124384785,0.00086,66690.0,66689.0,1.32058628]
[1718124385001,0.00086,66690.0,66689.0,1.00958645]
[1718124385225,0.00086,66690.0,66689.0,1.03223209]
[1718124385444,0.00086,66690.0,66689.0,0.88228309]
[1718124385657,0.00086,66690.0,66689.0,0.88228116]
[1718124385887,0.00086,66690.0,66689.0,0.70606162]
[1718124386107,0.00086,66690.0,66689.0,0.37996257]
[1718124386327,0.15267756,66690.0,66689.0,0.17996257]
[1718124386548,0.38892693,66690.0,66689.0,0.00376162]
[1718124386800,0.42492693,66690.0,66689.0,0.00376162]
[1718124387016,0.46784962,66690.0,66689.0,0.00376162]
[1718124387236,0.42492693,66690.0,66689.0,0.001]
[1718124387468,0.1293,66689.0,66682.0,0.01838925]
[1718124387693,0.14431993,66688.0,66687.0,0.07215996]
[1718124388412,0.14431993,66688.0,66687.0,0.07455185]
[1718124389260,0.14631993,66688.0,66687.0,0.07455185]
[1718124391745,0.14631993,66688.0,66687.0,0.00239189]
[1718124391746,0.42557193,66688.0,66687.0,0.00239189]
[1718124391956,0.1293,66686.0,66675.0,0.1]
[1718124392152,0.14631993,66688.0,66671.0,0.53295979]
[1718124392153,0.0938,66683.0,66671.0,0.53295979]
[1718124392353,0.1293,66681.0,66680.0,0.00249308]
[1718124392554,0.1293,66680.0,66668.0,0.07215996]
[1718124392753,0.0938,66678.0,66668.0,0.07215996]
[1718124392988,0.149979,66676.0,66675.0,0.07215996]
[1718124393194,0.29429893,66676.0,66675.0,0.07215996]
[1718124394203,0.33665882,66676.0,66675.0,0.07215996]
[1718124394612,0.34065882,66676.0,66675.0,0.07315996]
[1718124395214,0.34565882,66676.0,66675.0,0.07315996]
[1718124395472,0.30329893,66676.0,66675.0,0.07315996]
[1718124397101,0.43159893,66676.0,66675.0,0.001]
[1718124397658,0.0928,66669.0,66668.0,0.07215996]
[1718124398098,0.23711993,66669.0,66668.0,0.07470535]
[1718124399401,0.23522413,66669.0,66668.0,0.07470535]
[1718124399845,0.23522413,66669.0,66668.0,0.07215996]
[1718124400275,0.23522413,66669.0,66668.0,0.07576263]
[1718124400276,0.23922413,66669.0,66668.0,0.07576263]
[1718124400720,0.23522413,66669.0,66668.0,0.07476263]
[1718124400956,0.23922413,66669.0,66668.0,0.07576263]
[1718124401387,0.14831993,66669.0,66668.0,0.07576263]
[1718124403135,0.14831993,66669.0,66668.0,0.07676263]
[1718124403807,0.14431993,66669.0,66668.0,0.07576263]
[1718124404261,0.14831993,66669.0,66668.0,0.07576263]
[1718124404477,0.16315192,66669.0,66668.0,0.07576263]
[1718124404695,0.16315192,66669.0,66668.0,0.07476263]
[1718124404696,0.27481993,66669.0,66668.0,0.07476263]
[1718124404912,0.27081993,66669.0,66668.0,0.07476263]
[1718124405345,0.27481993,66669.0,66668.0,0.07576263]
[1718124405574,0.27081993,66669.0,66668.0,0.07476263]
[1718124406493,0.27081993,66669.0,66668.0,0.07576263]
[1718124406928,0.27481993,66669.0,66668.0,0.07676263]
[1718124407149,0.14831993,66669.0,66668.0,0.07676263]
[1718124407622,0.14831993,66669.0,66668.0,0.45246263]
[1718124408068,0.14831993,66669.0,66668.0,0.65246263]
[1718124408307,0.004,66669.0,66668.0,0.77246263]
[1718124409177,0.004,66669.0,66668.0,0.77146263]
[1718124409418,0.091,66681.0,66668.0,0.75046263]
[1718124409653,0.14431993,66680.0,66678.0,0.07215996]
[1718124412308,0.15531993,66680.0,66679.0,0.00261126]
[1718124412515,0.15931993,66680.0,66679.0,0.00261126]
[1718124413415,0.15531993,66680.0,66679.0,0.00261126]
[1718124414086,0.14431993,66680.0,66679.0,0.00261126]
[1718124414294,0.15631993,66680.0,66679.0,0.00361126]
[1718124414726,0.16031993,66680.0,66679.0,0.00461126]
[1718124417328,0.16031993,66680.0,66679.0,0.17641126]
[1718124418223,0.14831993,66680.0,66679.0,0.17541126]
[1718124418432,0.14431993,66680.0,66679.0,0.17441126]
[1718124418693,0.14731993,66680.0,66679.0,0.17441126]
[1718124418912,0.15131993,66680.0,66679.0,0.17541126]
[1718124419153,0.14431993,66680.0,66679.0,0.17441126]
[1718124419368,0.14831993,66680.0,66679.0,0.17541126]
[1718124420468,0.14831993,66680.0,66679.0,0.00361126]
[1718124429578,0.14917993,66680.0,66679.0,0.00361126]
[1718124430463,0.17909382,66680.0,66679.0,0.00361126]
[1718124430707,0.29914993,66680.0,66679.0,0.00361126]
[1718124430938,0.42604993,66680.0,66679.0,0.00361126]
[1718124431162,0.60871184,66680.0,66679.0,0.001]
[1718124431404,0.73455728,66680.0,66679.0,0.001]
[1718124431622,0.73455728,66680.0,66664.0,0.000946]
[1718124431623,0.276892,66670.0,66664.0,0.000946]
[1718124431835,0.42121193,66670.0,66664.0,0.000946]
[1718124432494,0.5026863,66670.0,66664.0,0.000946]
[1718124432725,0.62309176,66670.0,66664.0,0.000946]
[1718124432984,0.66796467,66670.0,66664.0,0.000946]
[1718124433191,0.62309176,66670.0,66664.0,0.000946]
[1718124433408,0.67198451,66670.0,66669.0,0.001946]
[1718124433635,0.77198451,66670.0,66669.0,0.001946]
[1718124433884,1.02707676,66670.0,66669.0,0.001946]
[1718124434104,0.650003,66665.0,66664.0,0.000946]
[1718124434344,1.40104906,66665.0,66664.0,0.000946]
[1718124434575,1.4337043,66665.0,66664.0,0.000946]
[1718124434804,1.60700656,66665.0,66664.0,0.000946]
[1718124435293,2.07500246,66665.0,66664.0,0.000946]
[1718124435530,2.23332239,66665.0,66664.0,0.001946]
[1718124435751,2.23332239,66665.0,66646.0,0.43295979]
[1718124435752,0.2829,66649.0,66646.0,0.43295979]
[1718124435984,0.0893,66646.0,66643.0,0.060011]
[1718124436230,0.185751,66644.0,66643.0,0.060011]
[1718124436467,0.150073,66634.0,66633.0,0.009405]
[1718124436700,0.57522,66634.0,66633.0,0.009405]
[1718124436929,0.648532,66634.0,66633.0,0.009405]
[1718124437852,1.05075193,66634.0,66633.0,0.009405]
[1718124438079,0.150109,66619.0,66617.0,0.009405]
[1718124438312,0.14431993,66618.0,66617.0,0.009405]
[1718124438531,0.17376282,66618.0,66617.0,0.009405]
[1718124439445,0.14431993,66618.0,66617.0,0.009405]
[1718124439675,0.14731993,66618.0,66617.0,0.009405]
[1718124439901,0.14431993,66618.0,66617.0,0.009405]
[1718124440341,0.15831993,66618.0,66617.0,0.010405]
[1718124440546,0.14431993,66618.0,66617.0,0.009405]
[1718124441197,0.14831993,66618.0,66617.0,0.287605]
[1718124441412,0.004,66618.0,66617.0,0.59896416]
[1718124441679,0.24292081,66634.0,66617.0,0.59896416]
[1718124441680,0.150087,66628.0,66617.0,0.57896416]
[1718124441902,0.004,66618.0,66617.0,0.37896416]
[1718124442116,0.015,66618.0,66617.0,0.37996416]
[1718124442334,0.004,66618.0,66617.0,0.37896416]
[1718124442773,0.014,66618.0,66617.0,0.37996416]
[1718124443009,0.014,66618.0,66617.0,0.37896416]
[1718124443438,0.025,66618.0,66617.0,0.59996416]
[1718124443681,0.1,66640.0,66625.0,0.3]
[1718124443906,0.1,66640.0,66617.0,0.45112412]
[1718124443907,0.14431993,66639.0,66632.0,0.1]
[1718124444133,0.29438293,66639.0,66632.0,0.1]
[1718124444604,0.29438293,66639.0,66633.0,0.0021407]
[1718124445294,0.0075042,66638.0,66633.0,0.0021407]
[1718124445517,0.150072,66635.0,66633.0,0.0021407]
[1718124445761,0.150075,66633.0,66632.0,0.001]
[1718124445987,0.29439493,66633.0,66632.0,0.001]
[1718124446211,0.29439493,66633.0,66626.0,0.1751]
[1718124446444,0.14431993,66632.0,66627.0,0.07215996]